Cogmind - Beta 17 @@@ ROGUE MODE // 2026.07.30 @ 20:02:34 Player: gorb Result: Destroyed by S-27 Virus with Autogun Performance ------------- Evolutions (6) 3000 Regions Visited (16) 3200 Robots Destroyed (28) 140 Value Destroyed (978) 978 Prototype IDs (25) 500 Alien Tech Used (0) 0 Bonus (607) 607 TOTAL SCORE: 8425 Bonus ------- Pacifist 200 Follower Combat Kills 107 Aligned with FarCom 300 Cogmind --------- Core Integrity 0/1150 Matter 243/300 Energy 98/100 System Corruption 5% Temperature Cool (0) Movement Core (50) Location -4/Upper Caves Parts ------- > --- POWER (3) -------- (None) > --- PROPULSION (6) --- (None) > --- UTILITY (6) ------ Gravity Neutralizer 0b10 Decoder Chip [Generic] Advanced Transmission Jammer Jamming Amplifier Hacking Suite > --- WEAPON (4) ------- (None) > --- INVENTORY (5) ---- Micro Nuclear Core Neutrino Core VTOL Module Quantum Capacitor Peak State ------------ > --- POWER ------------ Micro Nuclear Core Micro Nuclear Core Antimatter Reactor > --- PROPULSION ------- Field Propulsion Array Field Propulsion Array Field Propulsion Array > --- UTILITY ---------- Gravity Neutralizer Advanced Transmission Jammer Jamming Amplifier Improved Remote Force Field Hacking Suite > --- WEAPON ----------- Disruptor Cannon KE Penetrator Carbide Saw > --- INVENTORY -------- Neutrino Core Nuclear Pulse Array Carbide Saw [Rating: 104] Favorites ----------- Power Micro Nuclear Core Engine Light Ion Engine Power Core Micro Nuclear Core Reactor Antimatter Reactor Propulsion Compact Wheel Leg Carbon-fiber Leg Wheel Compact Wheel Flight Unit Field Propulsion Array Utility Small Storage Unit Device Gravity Neutralizer Storage Small Storage Unit Processor Jamming Amplifier Hackware Hacking Suite Protection Hardened Medium Armor Plating Weapon Light Assault Rifle Energy Gun EM Shotgun Energy Cannon Disruptor Cannon Ballistic Gun Light Assault Rifle Ballistic Cannon Advanced Assault Cannon Special Weapon Remote Datajack Slashing Weapon Carbide Saw Build | -11 -10 -10 -9 -9 -9 -8 -8 -7 -7 -7 -6 -5 -5 -5 -4 -4 ------- Run | Yrd Mat Min Mat Min Exi Min Mat Fac Low Low Fac Fac Upp Upp Fac Upp Slots Evolved 12 | . . . 2 . . . 2 2 . . 2 2 . . 2 . Power 2 | . . . . . . . 1 . . . 1 . . . . . Propulsion 4 | . . . 1 . . . 1 . . . . . . . 2 . Utility 4 | . . . 1 . . . . 2 . . 1 . . . . . Weapon 2 | . . . . . . . . . . . . 2 . . . . Parts Attached 81 | 7 . . 2 . 3 2 4 6 9 . 22 . . . 23 3 Power 15 | 1 . . . . 1 . 2 . 2 . 4 . . . 4 1 Engine 6 | 1 . . . . 1 . 2 . . . 2 . . . . . Core 7 | . . . . . . . . . 2 . 2 . . . 3 . Reactor 2 | . . . . . . . . . . . . . . . 1 1 Propulsion 26 | 3 . . 1 . . 2 2 1 3 . 6 . . . 8 . Treads . | . . . . . . . . . . . . . . . . . Leg 6 | 1 . . . . . . . . 3 . 2 . . . . . Wheel 8 | 2 . . 1 . . . 1 . . . 4 . . . . . Hover . | . . . . . . . . . . . . . . . . . Flight 12 | . . . . . . 2 1 1 . . . . . . 8 . Utility 25 | 1 . . 1 . 2 . . 3 2 . 9 . . . 6 1 Device 9 | . . . 1 . 1 . . . 1 . 3 . . . 3 . Storage 4 | 1 . . . . . . . 1 . . 1 . . . 1 . Processor 9 | . . . . . 1 . . 2 1 . 3 . . . 1 1 Hackware 2 | . . . . . . . . . . . 1 . . . 1 . Protection 1 | . . . . . . . . . . . 1 . . . . . Artifact . | . . . . . . . . . . . . . . . . . Weapon 15 | 2 . . . . . . . 2 2 . 3 . . . 5 1 Energy Gun 2 | . . . . . . . . . 1 . 1 . . . . . Energy Cannon 2 | . . . . . . . . . . . . . . . 2 . Ballistic Gun 5 | 2 . . . . . . . 2 . . . . . . 1 . Ballistic Cannon 2 | . . . . . . . . . 1 . . . . . . 1 Launcher . | . . . . . . . . . . . . . . . . . Special Weapon 1 | . . . . . . . . . . . 1 . . . . . Impact Weapon . | . . . . . . . . . . . . . . . . . Slashing Weapon 3 | . . . . . . . . . . . 1 . . . 2 . Piercing Weapon . | . . . . . . . . . . . . . . . . . Special Melee Weapon . | . . . . . . . . . . . . . . . . . Unidentified Prototypes 2 | . . . 1 . . . . . . . 1 . . . . . Parts Lost 54 | . . . 1 . . 8 1 2 . . 19 . 1 . 13 9 Power 11 | . . . 1 . . 1 . . . . 4 . . . 2 3 Propulsion 20 | . . . . . . 5 . 2 . . 7 . 1 . 3 2 Utility 10 | . . . . . . . 1 . . . 3 . . . 4 2 Weapon 13 | . . . . . . 2 . . . . 5 . . . 4 2 Highest Loss Streak 11 | . . . 1 . . 8 1 2 . . 11 . 1 . 4 4 To Critical Strikes . | . . . . . . . . . . . . . . . . . Average Backups 3 | 2 4 6 6 7 6 3 2 3 4 3 2 . . 1 3 4 Power . | . 1 1 1 2 1 1 . . . . . . . . 1 2 Propulsion . | 1 3 4 3 3 3 1 1 . . . . . . 1 . . Utility . | . . 1 1 2 1 1 1 1 1 . . . . . . 1 Weapon . | . . . . . . . . . 1 2 1 . . . . . Tool/Special . | . . . . . . . . . . . . . . . . . Unused Backups 10 | . 1 . . 2 . . . . . . 1 . . . 4 2 Power . | . . . . . . . . . . . . . . . . . Propulsion 7 | . 1 . . 2 . . . . . . . . . . 3 1 Utility 1 | . . . . . . . . . . . . . . . . 1 Weapon . | . . . . . . . . . . . . . . . . . Tool/Special 2 | . . . . . . . . . . . 1 . . . 1 . Average Slot Usage (%) 55 | . 85 85 87 77 86 53 21 26 30 76 52 58 55 52 59 51 Engine 3 | . 14 14 10 . 4 3 4 6 . . 3 5 5 5 2 . Core 4 | . . . . . . . . . 4 15 7 5 5 5 7 4 Leg 4 | . . . . . . . . . 10 23 12 . . . . . Wheel 6 | . 28 28 32 33 33 7 . . . . 2 11 8 5 . . Flight 4 | . . . . . . 2 4 9 . . . . . . 13 8 Device 7 | . . . 11 11 11 11 4 . 2 7 4 17 17 17 13 10 Storage 3 | . 14 14 11 11 11 11 4 . 2 7 2 . . . 1 2 Processor 3 | . . . . . 4 11 4 6 1 7 6 . . . 3 5 Hackware 2 | . . . . . . . . . . . . 5 5 5 5 9 Energy Gun 1 | . . . . . . . . . 3 7 3 . . . . . Ballistic Gun 4 | . 28 28 22 22 22 7 . 3 . . . . . . 1 . Ballistic Cannon 1 | . . . . . . . . . 5 7 2 . . . . . Slashing Weapon 1 | . . . . . . . . . . . 2 . . . 1 3 Peak Build Rating 104 | 6 6 8 21 20 22 14 12 17 29 29 39 34 34 33 104 65 Average Rating 32 | 4 6 7 20 20 17 9 5 9 13 29 27 34 33 33 76 58 On Entrance 20 | . 6 6 8 20 20 14 8 7 1 29 29 34 34 33 33 65 Avg Prop Armor Cover (%) 10 | . . . . . . . 8 . 15 . . . . . 2 5 Naked Turns 344 | . . . . . . . 77 57 141 . 69 . . . . . Heaviest Build 60 | 10 10 10 24 21 21 7 10 11 27 27 32 32 32 32 60 30 Greatest Support 76 | 26 26 26 42 42 42 4 5 9 48 48 76 44 44 28 57 32 Greatest Overweight (x) 4 | . . . . . . 2 2 3 2 . 3 . 1 1 1 4 Average Overweight (x) . | . . . . . . 1 . . . . . . . 1 . . Largest Inventory Capacity 10 | 8 8 8 8 8 8 8 8 8 8 8 10 5 5 5 8 8 Average Capacity 6 | 7 8 8 8 8 8 8 6 5 5 8 6 5 5 5 5 6 Most Carried 8 | 5 5 8 8 8 8 5 4 5 5 4 5 . 1 1 7 5 Average Carried 3 | 3 4 7 6 7 6 3 2 3 4 3 2 . . 1 3 4 Final Capacity 8 | 8 8 8 8 8 8 8 5 5 8 8 5 5 5 5 8 5 Final Carried 8 | 3 5 8 8 7 5 3 1 5 3 4 . . 1 1 5 5 Class Distribution -------------------- 63% | Mutant 19% | Scavenger-Mutant 7% | Sprinter 7% | Hacker-Mutant Dominant Class ---------------- Mutant | -10/Materials Mutant | -10/Mines Mutant | -9/Materials Mutant | -9/Mines Mutant | -9/Exiles Mutant | -8/Mines Mutant | -8/Materials Mutant | -7/Factory Mutant | -7/Lower Caves Scavenger-Mutant | -7/Lower Caves Scavenger-Mutant | -6/Factory Mutant | -5/Factory Mutant | -5/Upper Caves Mutant | -5/Upper Caves Mutant | -4/Factory Hacker-Mutant | -4/Upper Caves Resources | -11 -10 -10 -9 -9 -9 -8 -8 -7 -7 -7 -6 -5 -5 -5 -4 -4 ----------- Run | Yrd Mat Min Mat Min Exi Min Mat Fac Low Low Fac Fac Upp Upp Fac Upp Matter Collected 1276 | 193 . 48 89 2 . . . 145 130 56 89 . 96 . 258 170 Remotely . | . . . . . . . . . . . . . . . . . Salvage Created 800 | . . . 121 12 . . . 65 . 65 279 . . . 250 8 Parts 71 | . . . 9 2 . . . 4 . 7 22 . . . 27 . Haulers Intercepted . | . . . . . . . . . . . . . . . . . Recyclers Shooed 1 | . . . . . . . . . . . 1 . . . . . Parts Field Recycled . | . . . . . . . . . . . . . . . . . Retrieved Matter . | . . . . . . . . . . . . . . . . . Parts Self-Destructed 17 | . . . . . . . . . 10 6 . . . . . 1 Prevented . | . . . . . . . . . . . . . . . . . Parts Restored . | . . . . . . . . . . . . . . . . . Kills | -11 -10 -10 -9 -9 -9 -8 -8 -7 -7 -7 -6 -5 -5 -5 -4 -4 ------- Run | Yrd Mat Min Mat Min Exi Min Mat Fac Low Low Fac Fac Upp Upp Fac Upp Combat Hostiles Destroyed 23 | . . . 5 1 . . . 1 . 4 6 . . . 5 1 Melee 3 | . . . . . . . . . . . 3 . . . . . Guns 10 | . . . 5 1 . . . 1 . . . . . . 3 . Cannons 8 | . . . . . . . . . . 4 1 . . . 2 1 AOE 2 | . . . . . . . . . . . 2 . . . . . Classes Destroyed 6 | . . . 2 . . . . 2 . . 1 . . . 1 . Worker 3 | . . . . . . . . 1 . . 1 . . . 1 . Builder 2 | . . . . . . . . . . . 1 . . . 1 . Swarmer 9 | . . . 3 1 . . . . . 4 . . . . . 1 Cutter 3 | . . . . . . . . . . . . . . . 3 . Grunt 6 | . . . 2 . . . . . . . 4 . . . . . Programmer 5 | . . . . . . . . 1 . . 2 . . . 2 . Best Kill Streak 7 | . . . 3 1 . . . 1 . 4 7 . . . 4 1 Combat Bots Only 5 | . . . 3 1 . . . 1 . 4 5 . . . 3 1 Max Kills in Single Turn 2 | . . . 1 1 . . . 1 . 1 2 . . . 1 1 Gunslinging . | . . . . . . . . . . . . . . . . . Exploded 2 | . . . . . . . . . . . 2 . . . . . Melee 1 | . . . . . . . . . . . 1 . . . . . Uniques/NPCs Destroyed . | . . . . . . . . . . . . . . . . . Combat | -11 -10 -10 -9 -9 -9 -8 -8 -7 -7 -7 -6 -5 -5 -5 -4 -4 -------- Run | Yrd Mat Min Mat Min Exi Min Mat Fac Low Low Fac Fac Upp Upp Fac Upp Hostile Shots Fired 722 | . . . 31 2 . 70 59 96 . 31 147 5 45 . 167 69 Missed 259 | . . . 10 . . 15 24 37 . 11 47 2 13 . 75 25 Hits 463 | . . . 21 2 . 55 35 59 . 20 100 3 32 . 92 44 Melee 15 | . . . . . . . . . . . . . . . 15 . Projectile 448 | . . . 21 2 . 55 35 59 . 20 100 3 32 . 77 44 AOE 6 | . . . . . . . . . . . . . . . 6 . Critical Strikes 16 | . . . 1 . . . . . . 1 3 . . . 11 . Part Disruptions 1 | . . . . . . . . . . . . . . . . 1 Damage Taken 7647 | . . . 281 18 . 730 400 597 . 297 1724 47 309 . 2420 824 Core 2936 | . . . 10 10 . 322 309 443 . 29 570 15 70 . 812 346 Absorbed by Shields 124 | . . . . . . . . . . . . 12 84 . 28 . Ignored by Resistances 5 | . . . . . . . . . . . . . . . 5 . Core Remaining (%) 58 | 100 . 100 . . . 14 43 . . 32 32 . . 91 . . Volleys Fired 90 | . . . 15 1 . 6 . 8 . 7 15 . . . 26 12 Largest 2 | . . . 2 2 . 2 . 2 . 2 2 . . . 2 1 Hottest 138 | . . . 40 40 . 40 . 50 . 85 85 . . . 138 47 Shots Fired 140 | . . . 30 2 . 11 . 15 1 14 21 . . . 34 12 Gun 101 | . . . 30 2 . 11 . 15 . 7 15 . . . 21 . Cannon 39 | . . . . . . . . . 1 7 6 . . . 13 12 Launcher . | . . . . . . . . . . . . . . . . . Special . | . . . . . . . . . . . . . . . . . Kinetic 112 | . . . 30 2 . 11 . 15 1 7 13 . . . 21 12 Thermal 5 | . . . . . . . . . . . . . . . 5 . Explosive . | . . . . . . . . . . . . . . . . . Electromagnetic 23 | . . . . . . . . . . 7 8 . . . 8 . Robot Hit Streak 10 | . . . 4 4 . 10 . 2 3 2 8 . . . 4 3 Robot Miss Streak 6 | . . . 2 . . 1 . 1 . 6 3 . . . 3 3 Penetration Max 1 | . . . . . . . . . . . . . . . 1 . Secondary Targets 1 | . . . 1 . . . . . . . . . . . . . Max Gunslinging Chain 1 | . . . 1 . . . . . . . . . . . . . Shots Hit Robots 97 | . . . 18 2 . 10 . 9 1 7 25 . . . 20 5 Core Hits 54 | . . . 12 2 . 2 . 3 . 7 16 . . . 12 . Critical Kills . | . . . . . . . . . . . . . . . . . Critical Parts Destroyed . | . . . . . . . . . . . . . . . . . Critical Strikes 5 | . . . . . . . . . . . 3 . . . 1 1 Blast 1 | . . . . . . . . . . . . . . . . 1 Sever 4 | . . . . . . . . . . . 3 . . . 1 . Melee Attacks 19 | . . . . . . . . . . . 12 . . . 7 . Impact . | . . . . . . . . . . . . . . . . . Slashing 19 | . . . . . . . . . . . 12 . . . 7 . Piercing . | . . . . . . . . . . . . . . . . . Sneak Attacks 3 | . . . . . . . . . . . 2 . . . 1 . Combat Hostiles . | . . . . . . . . . . . . . . . . . Follow-up Attacks . | . . . . . . . . . . . . . . . . . Damage Inflicted 2605 | . . . 147 17 . 85 . 227 29 189 1250 . . . 506 155 Guns 912 | . . . 144 17 . 78 . 179 . 47 160 . . . 287 . Cannons 571 | . . . . . . . . . 29 142 110 . . . 135 155 Explosions 465 | . . . . . . . . . . . 465 . . . . . Melee 566 | . . . . . . . . . . . 482 . . . 84 . Ramming 91 | . . . 3 . . 7 . 48 . . 33 . . . . . Kinetic 1259 | . . . 144 17 . 78 . 179 29 142 228 . . . 287 155 Thermal 580 | . . . . . . . . . . . 465 . . . 115 . Explosive . | . . . . . . . . . . . . . . . . . Electromagnetic 109 | . . . . . . . . . . 47 42 . . . 20 . Impact . | . . . . . . . . . . . . . . . . . Slashing 566 | . . . . . . . . . . . 482 . . . 84 . Piercing . | . . . . . . . . . . . . . . . . . Highest Corruption 5 | . . . . . . . . 2 2 2 2 . . . 5 5 Average Corruption 3 | . . . . . . . . 1 2 2 1 . . . 4 5 Corruption Purged . | . . . . . . . . . . . . . . . . . Corruption Blocked 5 | . . . . . . . . . . . 5 . . . . . Effects 30 | . . . . . . . . 1 11 3 . . . . 4 11 Message Errors 10 | . . . . . . . . . 3 . . . . . 2 5 Matter Fused 8 | . . . . . . . . . 3 1 . . . . . 4 Heat Flow Errors 3 | . . . . . . . . . 1 . . . . . 1 1 Energy Discharges 3 | . . . . . . . . . 1 1 . . . . . 1 Data Loss (minor) 3 | . . . . . . . . . 1 1 . . . . 1 . Data Loss (major) 1 | . . . . . . . . . 1 . . . . . . . Misfires 1 | . . . . . . . . . 1 . . . . . . . Weapon Failures 1 | . . . . . . . . 1 . . . . . . . . Overload Shots . | . . . . . . . . . . . . . . . . . Overflow Damage 322 | . . . . . . . . 1 3 4 300 . . . . 14 Projectiles 21 | . . . . . . . . . 3 4 . . . . . 14 Explosions 284 | . . . . . . . . . . . 284 . . . . . Melee 17 | . . . . . . . . 1 . . 16 . . . . . Knockbacks 4 | . . . . . . . . . 1 . 2 . . . . 1 Impact . | . . . . . . . . . . . . . . . . . Kinetic 4 | . . . . . . . . . 1 . 2 . . . . 1 Secondary . | . . . . . . . . . . . . . . . . . Self-Inflicted Damage 404 | . . . 1 . . 3 . 22 . . 378 . . . . . Shots 5 | . . . . . . . . . . . 5 . . . . . Rammed 16 | . . . 1 . . 2 . 9 . . 4 . . . . . Targets Rammed 16 | . . . 1 . . 2 . 9 . . 4 . . . . . Kicked . | . . . . . . . . . . . . . . . . . Crushed . | . . . . . . . . . . . . . . . . . Highest Temperature 523 | . . . 4 . . 53 . . 110 127 285 . . . 523 234 Average Temperature 159 | . . . 3 . . 29 . . 62 62 135 . . . 181 103 Received Heat Transfer 988 | . . . 111 . . 306 45 84 . . 225 14 . . 176 27 Effects 17 | . . . . . . . . . . . . . . . 17 . Shutdowns 2 | . . . . . . . . . . . . . . . 2 . Energy Bleed 6 | . . . . . . . . . . . . . . . 6 . Interference 5 | . . . . . . . . . . . . . . . 5 . Matter Decay 3 | . . . . . . . . . . . . . . . 3 . Damage (core) 1 | . . . . . . . . . . . . . . . 1 . Siege Activations . | . . . . . . . . . . . . . . . . . Martial Activations . | . . . . . . . . . . . . . . . . . Shielding Activations . | . . . . . . . . . . . . . . . . . Robots Disrupted . | . . . . . . . . . . . . . . . . . Combat Hostiles . | . . . . . . . . . . . . . . . . . Robots Corrupted 1 | . . . . . . . . 1 . . . . . . . . Combat Hostiles . | . . . . . . . . . . . . . . . . . Parts Fried 2 | . . . . . . . . 2 . . . . . . . . Impact Corruptions 1 | . . . . . . . . 1 . . . . . . . . Robots Melted . | . . . . . . . . . . . . . . . . . Combat Hostiles . | . . . . . . . . . . . . . . . . . Parts Melted . | . . . . . . . . . . . . . . . . . Heat Transferred 411 | . . . . . . . . . . . 300 . . . 111 . Parts Sabotaged . | . . . . . . . . . . . . . . . . . Parts Stolen . | . . . . . . . . . . . . . . . . . Parts Stripped . | . . . . . . . . . . . . . . . . . Power Chain Reactions 1 | . . . . . . . . . . . 1 . . . . . Alert | -11 -10 -10 -9 -9 -9 -8 -8 -7 -7 -7 -6 -5 -5 -5 -4 -4 ------- Run | Yrd Mat Min Mat Min Exi Min Mat Fac Low Low Fac Fac Upp Upp Fac Upp Maximum Alert Level . | . . . . . . . . . . . . . . . . . Low Security (%) 100 | 100 100 100 100 100 . 100 100 100 . . 100 100 . . 100 . Level 1 . | . . . . . . . . . . . . . . . . . Level 2 . | . . . . . . . . . . . . . . . . . Level 3 . | . . . . . . . . . . . . . . . . . Level 4 . | . . . . . . . . . . . . . . . . . Level 5 . | . . . . . . . . . . . . . . . . . High Security . | . . . . . . . . . . . . . . . . . Max Security . | . . . . . . . . . . . . . . . . . Peak Influence 181 | . . . 31 50 . 20 70 31 . . 159 2 . . 181 . Initial 31 | . . . . . . . 7 31 . . 6 2 . . . . Average 40 | . . . 10 16 . 1 11 5 . . 48 . . . 89 . Influence Increases 1722 | . . . 181 50 . 30 90 66 79 90 408 . 30 . 588 110 Destroy 0b10 Robot/C 520 | . . . 100 20 . . . 20 60 80 120 . . . 100 20 Destroy 0b10 Robot/NC 25 | . . . . . . . . 5 . . 10 . . . 10 . Destroy Leader 100 | . . . 20 . . . . 10 10 10 30 . . . 20 . Allied During Kill 10 | . . . 1 . . . . . 9 . . . . . . . Successful Hack 34 | . . . . . . . . 16 . . 18 . . . . . Disable Machine 120 | . . . . . . . . . . . 120 . . . . . Destroy Structure 43 | . . . . . . . . . . . 35 . . . 8 . Partial Spotted 60 | . . . . . . . . . . . . . . . 60 . Lose Combat Pursuer 810 | . . . 60 30 . 30 90 15 . . 75 . 30 . 390 90 Influence Decreases 1703 | . . . 181 30 20 10 40 136 79 80 413 5 20 10 472 207 Entered New Map 125 | . . . . . 20 . 13 39 . . 4 3 . 2 . 44 Time Decay 1178 | . . . 120 30 . 10 27 97 59 80 250 2 20 8 352 123 Lost Part 329 | . . . 10 . . . . . . . 159 . . . 120 40 Lost Ally 71 | . . . 51 . . . . . 20 . . . . . . . Squads Dispatched 22 | . 1 . 3 . . . 1 3 . . 4 . . . 10 . Investigation . | . . . . . . . . . . . . . . . . . Extermination 9 | . . . . . . . . 3 . . 3 . . . 3 . Reinforcement 13 | . 1 . 3 . . . 1 . . . 1 . . . 7 . Assault . | . . . . . . . . . . . . . . . . . Garrison . | . . . . . . . . . . . . . . . . . Intercept . | . . . . . . . . . . . . . . . . . Searches Triggered . | . . . . . . . . . . . . . . . . . Construction Impeded . | . . . . . . . . . . . . . . . . . Haulers Reinforced 1 | . . . . . . . . . . . 1 . . . . . Active Scanning Responses . | . . . . . . . . . . . . . . . . . Cargo Convoy Interrupts . | . . . . . . . . . . . . . . . . . Stealth | -11 -10 -10 -9 -9 -9 -8 -8 -7 -7 -7 -6 -5 -5 -5 -4 -4 --------- Run | Yrd Mat Min Mat Min Exi Min Mat Fac Low Low Fac Fac Upp Upp Fac Upp Distress Signals 11 | . 1 . 2 . . . 2 1 . . . . . . 5 . Communications Jammed 61 | . . . . . . . . . . . . . . . 61 . Distress Signals 8 | . . . . . . . . . . . . . . . 8 . Times Spotted 164 | . 3 . 30 3 . 8 23 8 1 4 17 4 2 . 47 14 Peak Tracking Total 13 | . 4 . 5 3 . 7 13 4 1 4 5 4 2 . 8 6 Tactical Retreats 27 | . . . 2 1 . 1 2 1 . . 2 . 1 . 13 4 Traps | -11 -10 -10 -9 -9 -9 -8 -8 -7 -7 -7 -6 -5 -5 -5 -4 -4 ------- Run | Yrd Mat Min Mat Min Exi Min Mat Fac Low Low Fac Fac Upp Upp Fac Upp Traps Triggered 8 | . . . 2 . . . . 1 . . 2 . . . 2 1 Indirectly . | . . . . . . . . . . . . . . . . . Trap Hack Attempts . | . . . . . . . . . . . . . . . . . Triggered . | . . . . . . . . . . . . . . . . . Disarmed . | . . . . . . . . . . . . . . . . . Reprogrammed . | . . . . . . . . . . . . . . . . . Reused . | . . . . . . . . . . . . . . . . . Traps Extracted . | . . . . . . . . . . . . . . . . . Installed . | . . . . . . . . . . . . . . . . . Triggered . | . . . . . . . . . . . . . . . . . Machines | -11 -10 -10 -9 -9 -9 -8 -8 -7 -7 -7 -6 -5 -5 -5 -4 -4 ---------- Run | Yrd Mat Min Mat Min Exi Min Mat Fac Low Low Fac Fac Upp Upp Fac Upp Machines Disabled 8 | . . . . . . . . . . . 8 . . . . . Max in Single Turn 8 | . . . . . . . . . . . 8 . . . . . Garrison Access 1 | . . . . . . . . . . . . . . . 1 . Machines Repaired . | . . . . . . . . . . . . . . . . . Machines Dismantled . | . . . . . . . . . . . . . . . . . Machines Sabotaged . | . . . . . . . . . . . . . . . . . Overloaded Fab Kills . | . . . . . . . . . . . . . . . . . Hacking | -11 -10 -10 -9 -9 -9 -8 -8 -7 -7 -7 -6 -5 -5 -5 -4 -4 --------- Run | Yrd Mat Min Mat Min Exi Min Mat Fac Low Low Fac Fac Upp Upp Fac Upp Machines Accessed 18 | . . 1 . 1 1 . 2 2 2 . 3 . 1 . 5 . Terminals 11 | . . . . 1 . . 2 1 . . 2 . 1 . 4 . Fabricators 2 | . . . . . . . . 1 . . 1 . . . . . Repair Stations . | . . . . . . . . . . . . . . . . . Recycling Units . | . . . . . . . . . . . . . . . . . Scanalyzers . | . . . . . . . . . . . . . . . . . Garrison Access 1 | . . . . . . . . . . . . . . . 1 . Total Hacks 30 | . . 1 . 2 1 . 3 2 6 . 7 . 1 . 7 . Successful 20 | . . 1 . 2 1 . 1 2 6 . 3 . 1 . 3 . Failed 10 | . . . . . . . 2 . . . 4 . . . 4 . Catastrophic 2 | . . . . . . . . . . . 1 . . . 1 . Database Lockouts . | . . . . . . . . . . . . . . . . . Manual 7 | . . . . . 1 . 4 1 . . . . . . 1 . Terminals 16 | . . . . 2 . . 3 1 . . 4 . 1 . 5 . Fabricators 4 | . . . . . . . . 1 . . 3 . . . . . Repair Stations . | . . . . . . . . . . . . . . . . . Recycling Units . | . . . . . . . . . . . . . . . . . Scanalyzers . | . . . . . . . . . . . . . . . . . Garrison Access 2 | . . . . . . . . . . . . . . . 2 . Terminal Hacks 16 | . . 1 . 2 1 . . 1 6 . 2 . 1 . 2 . Record 7 | . . . . . . . . . 5 . . . 1 . 1 . Open Door 2 | . . 1 . . . . . . 1 . . . . . . . Open DSF 3 | . . . . . . . . . . . 2 . . . 1 . Dispatch Records 1 | . . . . 1 . . . . . . . . . . . . Hauler Manifests 1 | . . . . . . . . 1 . . . . . . . . Zone Layout 1 | . . . . 1 . . . . . . . . . . . . Proto ID Catalog 1 | . . . . . 1 . . . . . . . . . . . Fabricator Hacks 2 | . . . . . . . . 1 . . 1 . . . . . Build 2 | . . . . . . . . 1 . . 1 . . . . . Repair Station Hacks . | . . . . . . . . . . . . . . . . . Recycling Unit Hacks . | . . . . . . . . . . . . . . . . . Scanalyzer . | . . . . . . . . . . . . . . . . . Garrison Access Hacks 1 | . . . . . . . . . . . . . . . 1 . Seal Access 1 | . . . . . . . . . . . . . . . 1 . Unauthorized Hacks 1 | . . . . . . . 1 . . . . . . . . . Terminals 1 | . . . . . . . 1 . . . . . . . . . Botnet 1 | . . . . . . . 1 . . . . . . . . . Fabricators . | . . . . . . . . . . . . . . . . . Repair Stations . | . . . . . . . . . . . . . . . . . Recycling Units . | . . . . . . . . . . . . . . . . . Scanalyzers . | . . . . . . . . . . . . . . . . . Garrison Access . | . . . . . . . . . . . . . . . . . Data Cores Recovered . | . . . . . . . . . . . . . . . . . Used . | . . . . . . . . . . . . . . . . . Hacking Detections 7 | . . . . . . . 1 2 . . 2 . . . 2 . Full Trace Events . | . . . . . . . . . . . . . . . . . Feedback Events . | . . . . . . . . . . . . . . . . . Feedback Blocked . | . . . . . . . . . . . . . . . . . Robot Schematics Acquired . | . . . . . . . . . . . . . . . . . Robots Built 4 | . . . . . . . . 4 . . . . . . . . Authchips . | . . . . . . . . . . . . . . . . . Time 67 | . . . . . . . . 67 . . . . . . . . Total Robot Build Rating 16 | . . . . . . . . 16 . . . . . . . . Part Schematics Acquired . | . . . . . . . . . . . . . . . . . Parts Built 2 | . . . . . . . . . . . 2 . . . . . Authchips . | . . . . . . . . . . . . . . . . . Time 64 | . . . . . . . . . . . 64 . . . . . Total Part Build Rating 16 | . . . . . . . . . . . 16 . . . . . Part Studies Acquired . | . . . . . . . . . . . . . . . . . Parts Repaired . | . . . . . . . . . . . . . . . . . Time . | . . . . . . . . . . . . . . . . . Parts Recycled . | . . . . . . . . . . . . . . . . . Recycled Matter . | . . . . . . . . . . . . . . . . . Retrieved Matter . | . . . . . . . . . . . . . . . . . Retrieved Components . | . . . . . . . . . . . . . . . . . Parts Scanalyzed . | . . . . . . . . . . . . . . . . . Part Schematics Acquired . | . . . . . . . . . . . . . . . . . Parts Damaged . | . . . . . . . . . . . . . . . . . Bothacking | -11 -10 -10 -9 -9 -9 -8 -8 -7 -7 -7 -6 -5 -5 -5 -4 -4 ------------ Run | Yrd Mat Min Mat Min Exi Min Mat Fac Low Low Fac Fac Upp Upp Fac Upp Used RIF Installer . | . . . . . . . . . . . . . . . . . Robots Hacked . | . . . . . . . . . . . . . . . . . Non-combat . | . . . . . . . . . . . . . . . . . Combat . | . . . . . . . . . . . . . . . . . Robot Hacks Applied . | . . . . . . . . . . . . . . . . . Relay Couplers Released . | . . . . . . . . . . . . . . . . . Fabnet Peak Effective % . | . . . . . . . . . . . . . . . . . Robots Rewired . | . . . . . . . . . . . . . . . . . Allies Hacked . | . . . . . . . . . . . . . . . . . Hacks Repelled . | . . . . . . . . . . . . . . . . . Allies | -11 -10 -10 -9 -9 -9 -8 -8 -7 -7 -7 -6 -5 -5 -5 -4 -4 -------- Run | Yrd Mat Min Mat Min Exi Min Mat Fac Low Low Fac Fac Upp Upp Fac Upp Total Allies 7 | . . . . . . . . 4 3 . . . . . . . Largest Group 4 | . . . . . . . . 4 3 . . . . . . . Highest-Rated Group 75 | . . . . . . . . 48 75 . . . . . . . Highest-Rated Ally 25 | . . . . . . . . 12 25 . . . . . . . Total Orders . | . . . . . . . . . . . . . . . . . Ally Attacks 8 | . . . . . . . . 4 4 . . . . . . . Total Damage 173 | . . . . . . . . 34 139 . . . . . . . Kills 3 | . . . . . . . . . 3 . . . . . . . Allies Corrupted . | . . . . . . . . . . . . . . . . . Allies Melted . | . . . . . . . . . . . . . . . . . Intel | -11 -10 -10 -9 -9 -9 -8 -8 -7 -7 -7 -6 -5 -5 -5 -4 -4 ------- Run | Yrd Mat Min Mat Min Exi Min Mat Fac Low Low Fac Fac Upp Upp Fac Upp Active Infowar (turns) 2630 | . . . . . 101 72 87 . 181 305 603 . . . 817 464 Optics 199 | . . . . . . . . . . . 199 . . . . . Decoding 18 | . . . . . . . . . . . . . . . . 18 T.N.C. 260 | . . . . . 101 72 87 . . . . . . . . . Jamming 1264 | . . . . . . . . . . . . . . . 817 447 ECM 890 | . . . . . . . . . 181 305 404 . . . . . Robot Analysis Total . | . . . . . . . . . . . . . . . . . Derelict Logs Recovered 5 | . . 1 . . . . . . 1 1 . . . . . 2 Drone Launches 16 | . . . 16 . . . . . . . . . . . . . Drone Recoveries . | . . . . . . . . . . . . . . . . . Exploration | -11 -10 -10 -9 -9 -9 -8 -8 -7 -7 -7 -6 -5 -5 -5 -4 -4 ------------- Run | Yrd Mat Min Mat Min Exi Min Mat Fac Low Low Fac Fac Upp Upp Fac Upp Turns Passed 5953 | 123 69 260 303 121 231 72 177 543 607 305 1174 61 385 23 1035 464 Spaces Moved 6809 | 46 71 279 242 118 244 39 245 672 571 235 727 62 365 21 1788 1084 Core 965 | 15 . . . . . 25 157 133 420 . 173 . . . . 42 Treads . | . . . . . . . . . . . . . . . . . Legs 795 | 1 . . . . . . . . 151 235 408 . . . . . Wheels 1615 | 30 71 279 242 118 244 . . . . . 146 62 365 21 37 . Hover . | . . . . . . . . . . . . . . . . . Flight 3434 | . . . . . . 14 88 539 . . . . . . 1751 1042 Fastest Speed 31 | 50 90 90 93 93 93 120 40 32 50 120 50 100 100 115 31 37 Average Speed 67 | 76 90 90 93 93 93 139 68 43 93 120 99 100 105 115 42 39 Slowest Speed 250 | 120 90 90 93 93 93 150 150 200 150 120 200 100 115 115 120 250 Overloaded Moves . | . . . . . . . . . . . . . . . . . Propulsion Burnouts . | . . . . . . . . . . . . . . . . . Robots Hopped 18 | . . . . . . . 1 1 . . . . . . 16 . Potential Cave-ins . | . . . . . . . . . . . . . . . . . Cave-ins Triggered . | . . . . . . . . . . . . . . . . . Exploration Rate (%) 36 | 4 16 72 46 33 61 16 33 20 74 43 21 2 53 3 34 83 Regions Visited 16 Branch Regions 9 Pre-discovered Areas . | . . . . . . . . . . . . . . . . . Known Exits Taken 2 | . . . . . . . . . 1 1 . . . . . . Unknown Exits Taken 14 | 1 1 1 1 1 1 1 1 1 . . 1 1 1 1 1 . Scrap Searched 12 | . . 1 . . . . . . 2 3 . . 2 . . 4 Spaces Dug . | . . . . . . . . . . . . . . . . . Terrain Destroyed 59 | . . . . . . . . . . 1 44 . . . 6 8 Melee . | . . . . . . . . . . . . . . . . . Projectile 15 | . . . . . . . . . . 1 . . . . 6 8 AOE 44 | . . . . . . . . . . . 44 . . . . . Terrain Rammed . | . . . . . . . . . . . . . . . . . Walls Destroyed . | . . . . . . . . . . . . . . . . . Machines Disabled . | . . . . . . . . . . . . . . . . . Actions | -11 -10 -10 -9 -9 -9 -8 -8 -7 -7 -7 -6 -5 -5 -5 -4 -4 --------- Run | Yrd Mat Min Mat Min Exi Min Mat Fac Low Low Fac Fac Upp Upp Fac Upp Total 7967 | 132 76 287 295 128 248 48 254 913 643 244 1140 61 365 20 2011 1102 Wait 862 | 72 . 7 32 7 . . . 203 59 2 337 . . . 141 2 Move 6758 | 45 70 278 241 117 243 38 242 669 570 234 726 61 364 20 1756 1084 Hop 17 | . . . . . . . 1 1 . . . . . . 15 . Pick Up 78 | 7 4 2 3 1 1 . 2 8 4 1 18 . 1 . 25 1 Fast Attach 17 | 3 . . 1 . . . . . 4 . 2 . . . 5 2 Attach 73 | 4 . . 2 . 3 2 5 7 6 . 21 . . . 22 1 Detach 10 | . . . . . . . 1 4 . . . . . . 5 . Swap . | . . . . . . . . . . . . . . . . . Drop 27 | 1 2 . . 2 1 . 3 4 . . 5 . . . 9 . Fire 90 | . . . 15 1 . 6 . 8 . 7 15 . . . 26 12 Melee 19 | . . . . . . . . . . . 12 . . . 7 . Ram 16 | . . . 1 . . 2 . 9 . . 4 . . . . . Kick . | . . . . . . . . . . . . . . . . . Crush . | . . . . . . . . . . . . . . . . . Escape Stasis . | . . . . . . . . . . . . . . . . . Rewire . | . . . . . . . . . . . . . . . . . Trap . | . . . . . . . . . . . . . . . . . Miscellaneous . | . . . . . . . . . . . . . . . . . Route ------- -11/Scrapyard -10/Materials -10/Mines -9/Materials (discovered 2 exits: *Min / [*Sto]) -9/Mines -9/Exiles (discovered 2 exits: [*Min x2]) -8/Mines -8/Materials -7/Factory -7/Lower Caves -7/Lower Caves -6/Factory -5/Factory -5/Upper Caves -5/Upper Caves -4/Factory (discovered 2 exits: [*Res] / [*Upp]) -4/Upper Caves (discovered 1 exit: Upp) History --------- Turn | Location | Event 13 | -11/Scrapyard | Discovered new exit (range 15) 124 | -11/Scrapyard | Entered Materials 184 | -10/Materials | Discovered new exit (range 7) 193 | -10/Materials | Entered Mines 213 | -10/Mines | Found the Drone Emporium 223 | -10/Mines | Found Prototype Device 273 | -10/Mines | Met a Derelict bent on vengeance 305 | -10/Mines | Build established: Mutant 333 | -10/Mines | Learned Materials stockpile data 333 | -10/Mines | Discovered new exit (range 6) 453 | -10/Mines | Entered Materials 453 | -9/Materials | Evolved 2 slots: Propulsion x1, Utility x1 453 | -9/Materials | Identified Decoy Drone Bay 521 | -9/Materials | Discovered new exit (range 65) 530 | -9/Materials | Discovered new exit (range 48) 567 | -9/Materials | Lost 10 allies 756 | -9/Materials | Entered Mines 872 | -9/Mines | Deemed a non-threat by the Exiles lab entrance 873 | -9/Mines | Discovered new exit (range 5) 877 | -9/Mines | Entered Exiles 895 | -9/Exiles | Discovered new exit (range 14) 912 | -9/Exiles | Met 8R-AWN 923 | -9/Exiles | Met EX-HEX 954 | -9/Exiles | Met EX-BIN 976 | -9/Exiles | Aligned with FarCom system 977 | -9/Exiles | Given EX-Vault access code 999 | -9/Exiles | Opened EX-Vault 1003 | -9/Exiles | Found Prototype Device 1005 | -9/Exiles | Identified Skeleton Box 1028 | -9/Exiles | Warned to stay clear of 0b10 Research branches 1054 | -9/Exiles | Met EX-DEC 1087 | -9/Exiles | Discovered new exit (range 11) 1108 | -9/Exiles | Left Exiles lab with Skeleton Box 1108 | -9/Exiles | Entered Mines 1146 | -8/Mines | Core integrity fell below 50% 1158 | -8/Mines | Discovered new exit (range 15) 1169 | -8/Mines | Core integrity fell below 20% 1177 | -8/Mines | Lost 8 parts (1p5n2w) 1180 | -8/Mines | Entered Materials 1180 | -8/Materials | Evolved 2 slots: Power x1, Propulsion x1 1347 | -8/Materials | Core integrity fell below 50% 1353 | -8/Materials | Discovered new exit (range 10) 1357 | -8/Materials | Entered Factory 1357 | -7/Factory | Evolved 2 slots: Utility x2 1590 | -7/Factory | Fabricated S-27 Virus (x4) 1718 | -7/Factory | Lost 3 allies 1876 | -7/Factory | Discovered new exit (range 10) 1892 | -7/Factory | Core integrity fell below 50% 1900 | -7/Factory | Entered Lower Caves 1907 | -7/Lower Caves | Entered an active Warlord outpost 1910 | -7/Lower Caves | A Commander dispatched an escort 1916 | -7/Lower Caves | Learned Armory terminal intel 2175 | -7/Lower Caves | Identified exit to Lower Caves 2185 | -7/Lower Caves | Encountered a Warlord checkpoint 2507 | -7/Lower Caves | Entered another Lower Caves area 2507 | -7/Lower Caves | Accompanied by 1 ally 2508 | -7/Lower Caves | Commander's escort returned to base 2535 | -7/Lower Caves | Identified exit to Factory 2607 | -7/Lower Caves | Build established: Scavenger-Mutant 2812 | -7/Lower Caves | Entered Factory 2812 | -6/Factory | Evolved 2 slots: Power x1, Utility x1 3258 | -6/Factory | Lost 11 parts (3p3n3u2w) 3400 | -6/Factory | Fabricated Adv. Corruption Screen (x2) 3492 | -6/Factory | Allied Derelicts emerged from ambush trap array 3719 | -6/Factory | Core integrity fell below 50% 3746 | -6/Factory | Lost 6 parts (1p2n3w) 3972 | -6/Factory | Discovered new exit (range 15) 3986 | -6/Factory | Build established: Mutant 3986 | -6/Factory | Entered another Factory area 3986 | -5/Factory | Evolved 2 slots: Weapon x2 4038 | -5/Factory | Discovered new exit (range 9) 4047 | -5/Factory | Entered Upper Caves 4419 | -5/Upper Caves | Discovered new exit (range 13) 4432 | -5/Upper Caves | Entered another Upper Caves area 4447 | -5/Upper Caves | Discovered new exit (range 6) 4455 | -5/Upper Caves | Entered Factory 4455 | -4/Factory | Evolved 2 slots: Propulsion x2 5016 | -4/Factory | Lost 3 parts (1p2u) 5145 | -4/Factory | Spotted B-86 Titan 5273 | -4/Factory | Found Quantum Capacitor 5277 | -4/Factory | Core integrity fell below 50% 5352 | -4/Factory | Lost 4 parts (1p1n1u1w) 5484 | -4/Factory | Discovered new exit (range 12) 5489 | -4/Factory | Discovered new exit (range 14) 5490 | -4/Factory | Entered Upper Caves 5537 | -4/Upper Caves | Encountered a Warlord checkpoint 5559 | -4/Upper Caves | Identified exit to Upper Caves 5663 | -4/Upper Caves | Attracted the attention of an 0b10 checkpoint 5755 | -4/Upper Caves | Build established: Hacker-Mutant 5795 | -4/Upper Caves | Attracted the attention of an 0b10 outpost 5814 | -4/Upper Caves | Learned 4 Research zone layouts 5880 | -4/Upper Caves | Core integrity fell below 20% 5894 | -4/Upper Caves | Lost 4 parts (2p1n1w) 5954 | -4/Upper Caves | Destroyed by S-27 Virus with Autogun Last Messages --------------- Slug penetrates Wall. Hacking Suite destroyed. System corrupted: Matter fused (-7). Slug penetrates Wall. S-27 Virus knocked back. Searching scrap... Found Imp. Shock Absorption System. Found 0b10 Decoder Chip [Generic]. Found 36 Matter. Acquired 36 matter. Impulse Thruster destroyed. Destroyed Lgt. Nuclear Core. S-27 Virus suffers critical hit (Blast). S-27 Virus destroyed. Acquired 8 matter. Enh. Gauss Cannon destroyed. Acquired 0b10 Decoder Chip [Generic]. Mic. Fission Core destroyed. Y-72 Warden: "REQUESTING BACKUP." System corrupted: Matter fused (-10). Map ----- +----------------------------------------------------+ | ?????????????????????????????????????????????????? | | ??????????????????????????????????????????????#### | | ?????????????????????????????????????????????## | | ?????????????????????????????????????????????# | | ??????????????????????????????????????????????? | | ???????????????????????????????????????????????? | | ?????????????????????????????????????????????????# | | ???????????????????????????????????????????????### | | ???????????????????????????????????????????????# | | ???????????????????????????????????????????????## | | ????????????????????????????????????????????????## | | ??????????????????????????????????????? ???????? | | ????????????????????????????????????????# ##### | | ????????????????????????????????????????# | | ?????????????????????????????????????????# | | ??????????????????????????????????????????######## | | ?????????????????????????????????????????????##### | | ????????????????????????????????????????????## | | ???????????????????????####????????????????## | | ??????????????????????## ##??????????????## | | ??????????????????##### #??????????????# | | ?????????????????## #???????#??????# # | | ?????????????????# #####?? ##?????## # | | ??????????????????? ## ##?????# ## | | ?????????????????????# ##????## #?# | | ??????????????????????# @ #?????###?# | | ?????????????????>????# s ###??????????????# | | ??????????????????????## s ##????? #?????????## | | ???????????????????????## ###????? #?????????? | | ???????????????????????## ##??????? ??????????? | | ???????????????????????# #???????? #??????????? | | ???????????????????????# ######?## #?????????? | | ???????????????????????## ## ### # #??????????? | | ????????????????????????# # #??????##??? | | ????????????????????????# # # # #####??# ##? | | ????????????????????????# s# ## #####"## | | ???????????????????????## # | | ???????????????????????# # # %! | | ???????????????????????## # # ######### | | ????????????????????????####### # #???????# | | ??????????????????????????????## #???????# | | ???????????????????????????????## # # # ##???????# | | ????????????????????????????????# ##????????? | | ???????????????????????????????# # ##?????????? | | ???????????????????????????????## ##??????????? | | ????????????????????????????????######???????????? | | ?????????????????????????????????????????????????? | | ?????????????????????????????????????????????????? | | ?????????????????????????????????????????????????? | | ?????????????????????????????????????????????????? | +----------------------------------------------------+ Best States ------------- Heat Dissipation 43 Energy Generation 42 Energy Capacity 425 Matter Stores 300 Matter Capacity 300 Sight Range 22 Terrain Scan Density 10 ECM Strength 1 Jamming Range 16 Additional Mass Support 12 Corruption Block 40 Armor Coverage 225 Resistance: EM 25 Weapon Cycling 15 Evasion (%) 63 Melee Accuracy 5 Offensive Hacking 20 Item Schematics ----------------- None Robot Schematics ------------------ None Fabricated ------------ S-27 Virus | x4 | -7/Factory | Preloaded Adv. Corruption Screen | x2 | -6/Factory | Preloaded Repaired ---------- Nothing Studied --------- None Alien Tech Used ----------------- None Achievements -------------- No Room For Error Plot Armor Challenges ------------ None Game ------ Seed StasisSubatomicStorm Manual? 0 Play Time 01:26:59 Cumulative 50.0 hours Start 2026.07.30 @ 17:28:22 End 2026.07.30 @ 20:02:34 Sessions 3 Manual Loads 0 Difficulty Rogue Special Mode None Game No. 88 Rogue 86 Adventurer 0 Explorer 2 Win Type - Total 0 Types 0/0/0/0/0/0/0/0/0/0 Lore% 26 Gallery% 30 Achievement% 21 Wizard Run 0 Options --------- Layout 1 ASCII 0 Keyboard 0 Movement Mouse Keybinds 0 Fullscreen 1 Font 24/Smallcaps Map View 50x35 Zoom Use 0% Tactical HUD 0 Map Filters NONE Filters NONE Steam 1 RUN: b34fbd72-b0e9-4b08-bc34-aa0619c4a463